bitfinex-derivatives/quotes_BNBF0:USTF0_20251010
["timestamp","ask_amount","ask_price","bid_price","bid_amount"]
[1760126425095,0.79465625,1236.2,1232.4,0.5863849]
[1760126425795,0.79465625,1236.1,1232.4,0.5863849]
[1760126426095,0.79465625,1236.1,1232.3,0.5863849]
[1760126426597,0.79465625,1236.1,1232.4,0.5863849]
[1760126426996,0.79465625,1236.1,1232.1,0.78184654]
[1760126427194,0.79465625,1236.1,1232.4,0.58444689]
[1760126427397,0.79465625,1236.2,1232.4,0.58444689]
[1760126427794,0.79465625,1236.2,1232.3,0.58444689]
[1760126427996,0.79465625,1236.0,1232.1,0.58444689]
[1760126428195,0.79465625,1235.9,1232.0,0.58444689]
[1760126429295,0.79465625,1235.8,1232.0,0.58444689]
[1760126429698,0.79465625,1235.7,1232.1,0.58444689]
[1760126430097,0.79465625,1235.8,1232.0,0.58444689]
[1760126430299,1.21301626,1236.0,1231.5,1.17276981]
[1760126430300,0.79465625,1235.7,1231.8,0.58444689]
[1760126430598,0.79465625,1235.7,1231.5,0.58444689]
[1760126430599,0.79465625,1235.4,1231.5,0.58444689]
[1760126430900,0.79465625,1235.8,1231.8,0.58444689]
[1760126431098,0.79465625,1236.0,1232.1,0.58444689]
[1760126431300,0.79465625,1236.3,1232.1,0.58444689]
[1760126432103,1.21301626,1236.6,1232.1,0.58444689]
[1760126432104,0.79465625,1235.9,1232.3,0.58444689]
[1760126432299,0.79465625,1236.0,1232.2,0.58444689]
[1760126432504,0.79465625,1236.1,1232.1,0.58444689]
[1760126432805,0.79465625,1235.5,1231.8,0.58444689]
[1760126433101,0.79465625,1235.3,1231.6,0.58444689]
[1760126433406,0.79465625,1235.0,1230.4,0.58444689]
[1760126433602,0.79465625,1235.0,1230.5,0.58444689]
[1760126433921,0.79465625,1235.0,1230.7,0.58444689]
[1760126434100,0.79465625,1234.9,1230.7,0.58444689]
[1760126434405,4.01026429,1239.0,1230.7,0.58444689]
[1760126434406,0.79465625,1235.1,1230.7,0.58444689]
[1760126434612,0.79465625,1235.4,1230.8,0.58444689]
[1760126434799,0.79465625,1235.4,1230.4,0.78184654]
[1760126434800,0.79465625,1235.3,1230.9,0.58444689]
[1760126435005,0.79465625,1235.6,1231.2,0.58444689]
[1760126435400,0.79465625,1235.7,1231.2,0.58444689]
[1760126435606,0.79465625,1236.1,1231.6,0.58444689]
[1760126435801,0.79465625,1236.3,1231.8,0.58444689]
[1760126436602,0.79465625,1236.4,1231.8,0.58444689]
[1760126436805,0.79465625,1236.7,1231.8,0.58444689]
[1760126437006,0.79465625,1236.6,1231.8,0.58444689]
[1760126437301,0.79465625,1236.2,1231.6,0.58444689]
[1760126437905,0.79465625,1236.1,1231.5,0.58444689]
[1760126438201,0.79465625,1236.0,1231.5,0.58444689]
[1760126438604,0.79465625,1236.1,1231.5,0.58444689]
[1760126439007,0.79465625,1235.9,1231.6,0.58444689]
[1760126441107,0.79465625,1236.0,1231.6,0.58444689]
[1760126441403,0.79465625,1236.3,1231.5,0.58444689]
[1760126442003,0.79465625,1236.4,1231.6,0.58444689]
[1760126442209,0.79465625,1236.5,1231.6,0.58444689]
[1760126442503,0.79465625,1236.2,1231.7,0.58444689]
[1760126442707,0.79465625,1236.2,1231.3,1.17276981]
[1760126442708,0.79465625,1236.5,1231.3,0.58444689]
[1760126443104,0.79465625,1236.1,1231.3,0.58444689]
[1760126443907,0.14103258,1235.0,1231.3,0.58444689]
[1760126444106,0.14103258,1235.0,1231.0,0.58444689]
[1760126444306,0.14103258,1235.0,1230.9,0.58444689]
[1760126444812,0.14103258,1235.0,1231.0,0.58444689]
[1760126445014,0.14103258,1235.0,1231.4,0.58444689]
[1760126445909,0.14103258,1235.0,1231.3,0.58444689]
[1760126446114,0.14103258,1235.0,1231.7,0.58444689]
[1760126446312,0.14103258,1235.0,1230.8,0.58444689]
[1760126446518,0.14103258,1235.0,1230.7,0.58444689]
[1760126447114,0.14103258,1235.0,1230.6,0.58444689]
[1760126448318,0.14103258,1235.0,1230.5,0.58444689]
[1760126448618,0.14103258,1235.0,1230.6,0.58444689]
[1760126448818,0.14103258,1235.0,1230.7,0.58444689]
[1760126449018,0.14103258,1235.0,1230.5,0.58444689]
[1760126449419,0.14103258,1235.0,1230.4,0.58444689]
[1760126450619,0.14103258,1235.0,1230.3,0.58444689]
[1760126451016,0.14103258,1235.0,1230.2,0.58444689]
[1760126451218,0.93568883,1235.0,1230.2,0.58444689]
[1760126451820,0.79465625,1234.6,1230.0,0.58444689]
[1760126452021,0.14103258,1235.0,1229.8,0.58444689]
[1760126452022,0.79465625,1234.3,1229.8,0.58444689]
[1760126452221,0.79465625,1234.4,1229.6,0.58444689]
[1760126452419,0.79465625,1234.5,1229.6,0.58444689]
[1760126452619,0.79465625,1234.5,1229.8,0.58444689]
[1760126453321,0.93568883,1235.0,1229.6,0.58444689]
[1760126453525,0.79465625,1234.7,1229.7,0.58444689]
[1760126453722,0.79465625,1234.5,1229.3,0.58444689]
[1760126454222,0.79465625,1234.2,1229.1,0.58444689]
[1760126454428,0.79465625,1234.1,1229.0,0.58444689]
[1760126454625,0.79465625,1234.9,1229.3,0.58444689]
[1760126454926,0.79465625,1234.7,1229.3,0.58444689]
[1760126455329,0.79465625,1234.4,1229.4,0.58444689]
[1760126456129,0.79465625,1234.3,1229.1,0.58444689]
[1760126456426,0.79465625,1234.5,1229.2,0.58444689]
[1760126456625,0.79465625,1234.6,1229.4,0.58444689]
[1760126457126,0.79465625,1234.3,1229.5,0.58444689]
[1760126457327,0.79465625,1234.5,1229.4,0.58444689]
[1760126457723,0.79465625,1234.5,1229.3,0.58444689]
[1760126457928,0.79465625,1234.6,1229.2,0.58444689]
[1760126458326,0.79465625,1234.6,1229.3,0.58444689]
[1760126458829,0.79465625,1234.5,1229.7,0.58444689]
[1760126459331,0.79465625,1234.7,1229.7,0.58444689]
[1760126459530,0.14103258,1235.0,1229.8,0.58444689]
[1760126459831,0.14103258,1235.0,1229.9,0.58444689]
[1760126460433,0.93568883,1235.0,1229.9,0.58444689]
[1760126460932,0.79465625,1234.6,1229.9,0.58444689]
[1760126461429,0.79465625,1234.5,1229.9,0.58444689]
[1760126461633,0.79465625,1234.6,1229.8,0.58444689]
[1760126461831,0.79465625,1234.8,1229.7,0.58444689]
[1760126462331,0.79465625,1234.7,1229.6,0.58444689]
[1760126462732,0.79465625,1234.6,1229.5,0.58444689]
[1760126462932,1.35404884,1235.0,1229.5,0.58444689]
[1760126462933,0.79465625,1234.4,1229.5,0.58444689]
[1760126463333,0.79465625,1234.1,1229.4,0.58444689]
[1760126463629,0.79465625,1233.9,1229.3,0.58444689]
[1760126464529,0.79465625,1234.0,1229.2,0.58444689]
[1760126465233,0.79465625,1233.7,1229.0,0.58444689]
[1760126465429,0.79465625,1233.7,1228.9,0.58444689]
[1760126465631,0.79465625,1233.5,1228.9,0.58444689]
[1760126465833,0.79465625,1233.6,1228.9,0.58444689]
[1760126466030,0.79465625,1233.8,1229.0,0.58444689]
[1760126466536,0.79465625,1234.3,1228.9,0.58444689]
[1760126466730,0.79465625,1234.2,1228.8,0.58444689]
[1760126467431,0.79465625,1233.5,1228.6,0.58444689]
[1760126467731,0.79465625,1233.5,1228.5,0.58444689]
[1760126468231,0.79465625,1233.3,1228.6,0.58444689]
[1760126468435,0.79465625,1233.7,1228.4,0.58444689]
[1760126468636,0.79465625,1233.5,1228.2,0.58444689]
[1760126469132,0.79465625,1233.4,1228.3,0.58444689]
[1760126469335,0.79465625,1233.4,1228.7,0.58444689]
[1760126469637,0.79465625,1233.3,1228.7,0.58444689]
[1760126470837,0.79465625,1233.6,1228.8,0.58444689]
[1760126471538,0.79465625,1233.4,1228.4,0.58444689]
[1760126472435,0.79465625,1233.5,1228.4,0.58444689]
[1760126472634,0.79465625,1233.5,1228.5,0.58444689]
[1760126472935,0.79465625,1233.7,1228.8,0.58444689]
[1760126473135,0.79465625,1233.8,1228.9,0.58444689]
[1760126473634,0.79465625,1234.0,1229.1,0.58444689]
[1760126473934,0.79465625,1234.7,1229.5,0.58444689]
[1760126474138,1.35404884,1235.0,1229.5,0.58444689]
[1760126474139,0.79465625,1234.6,1229.5,0.58444689]
[1760126474333,0.79465625,1234.4,1229.5,0.58444689]
[1760126475336,0.79465625,1234.2,1229.5,0.58444689]
[1760126475534,0.79465625,1234.0,1229.4,0.58444689]
[1760126475939,0.79465625,1234.5,1229.3,0.58444689]
[1760126476137,0.79465625,1234.3,1229.1,0.58444689]
[1760126476435,0.79465625,1234.2,1229.2,0.58444689]
[1760126476640,0.79465625,1234.4,1229.4,0.58444689]
[1760126477338,0.79465625,1234.3,1229.5,0.58444689]
[1760126477537,0.79465625,1234.5,1229.6,0.58444689]
[1760126477742,0.79465625,1234.4,1229.5,0.58444689]
[1760126477940,0.79465625,1234.4,1229.2,0.78184654]
[1760126477941,0.79465625,1234.2,1229.3,0.58444689]
[1760126478244,0.79465625,1234.0,1229.3,0.58444689]
[1760126478646,0.79465625,1233.9,1229.4,0.58444689]
[1760126479646,0.79465625,1233.8,1229.3,0.58444689]
[1760126479847,0.79465625,1233.6,1229.3,0.58444689]
[1760126480048,0.79465625,1233.6,1229.2,0.58444689]
[1760126480243,0.79465625,1233.6,1229.3,0.58444689]
[1760126481048,0.79465625,1233.7,1229.1,0.58444689]
[1760126481448,0.79465625,1233.9,1229.2,0.58444689]
[1760126481945,0.79465625,1233.7,1229.3,0.58444689]
[1760126482149,0.79465625,1233.7,1229.4,0.58444689]
[1760126482446,0.79465625,1233.6,1229.4,0.58444689]
[1760126482752,0.79465625,1233.8,1229.6,0.58444689]
[1760126483057,0.79465625,1233.9,1229.5,0.58444689]
[1760126483255,0.14103258,1235.0,1229.4,0.58444689]
[1760126483256,0.79465625,1233.8,1229.4,0.58444689]
[1760126483550,0.79465625,1233.9,1229.4,0.58444689]
[1760126483749,0.79465625,1233.9,1229.7,0.58444689]
[1760126484062,1.21301626,1234.1,1229.8,0.58444689]
[1760126484350,0.79465625,1234.2,1230.0,0.58444689]
[1760126484552,0.79465625,1234.3,1230.1,0.58444689]
[1760126484763,0.93568883,1235.0,1230.8,0.58444689]
[1760126485053,0.14103258,1235.0,1231.7,0.58444689]
[1760126485254,0.14103258,1235.0,1231.5,0.58444689]
[1760126485554,0.14103258,1235.0,1231.6,0.58444689]
[1760126486153,0.14103258,1235.0,1231.7,0.58444689]
[1760126486451,0.14103258,1235.0,1231.9,0.58444689]
[1760126486650,0.14103258,1235.0,1232.0,0.58444689]
[1760126486855,0.79465625,1236.3,1232.2,0.58444689]
[1760126487154,0.14096003,1235.2,1232.2,0.58444689]
[1760126487355,0.79465625,1236.4,1232.3,0.58444689]
[1760126487554,0.14093919,1235.5,1232.3,0.58444689]
[1760126487757,0.14093919,1235.5,1232.4,0.58444689]
[1760126488153,0.14093919,1235.5,1232.3,0.58444689]
[1760126489057,0.14093919,1235.5,1232.2,0.58444689]
[1760126489660,0.14093919,1235.5,1232.1,0.58444689]
[1760126489956,0.14093919,1235.5,1232.0,0.58444689]
[1760126490155,0.14093919,1235.5,1231.8,0.58444689]
[1760126490358,0.14093919,1235.5,1231.7,0.58444689]
[1760126490854,0.14093919,1235.5,1231.6,0.58444689]
[1760126491057,0.14093919,1235.5,1231.7,0.58444689]
[1760126491657,0.14093919,1235.5,1231.6,0.58444689]
[1760126492058,0.14093919,1235.5,1231.7,0.58444689]
[1760126492458,0.14093919,1235.5,1231.9,0.58444689]
[1760126493255,0.14093919,1235.5,1231.8,0.58444689]
[1760126494056,0.14093919,1235.5,1231.9,0.58444689]
[1760126494255,0.14093919,1235.5,1231.8,0.58444689]
[1760126494660,0.14093919,1235.5,1231.7,0.58444689]
[1760126494962,0.14093919,1235.5,1231.6,0.58444689]
[1760126495156,0.14093919,1235.5,1231.5,0.58444689]
[1760126496160,0.79465625,1237.1,1232.0,0.58444689]
[1760126496460,0.14096859,1235.4,1232.0,0.58444689]
[1760126496661,0.79465625,1237.2,1231.8,0.58444689]
[1760126496861,1.94673086,1239.3,1231.9,0.58444689]
[1760126496862,0.14090181,1235.7,1231.9,0.58444689]
[1760126497156,0.79465625,1237.1,1231.9,0.58444689]
[1760126497457,0.14092635,1235.4,1231.9,0.58444689]
[1760126497659,0.79465625,1237.5,1232.2,0.58444689]
[1760126497962,0.14090352,1235.7,1232.1,0.58444689]
[1760126498358,0.79465625,1237.5,1232.1,0.58444689]
[1760126498562,0.14088242,1235.9,1232.1,0.58444689]
[1760126498863,0.79465625,1237.5,1232.1,0.58444689]
[1760126499065,0.14091094,1235.4,1231.8,0.58444689]
[1760126499462,0.79465625,1237.5,1231.8,0.58444689]
[1760126499661,0.14092178,1235.4,1231.8,0.58444689]
[1760126499860,0.79465625,1237.6,1232.1,0.58444689]
[1760126500159,0.14091208,1235.5,1232.1,0.58444689]
[1760126500465,0.79465625,1237.5,1232.1,0.58444689]
[1760126500765,0.14088869,1235.8,1232.2,0.58444689]
[1760126501063,0.79465625,1237.3,1232.0,0.58444689]
[1760126501263,2.72981337,1240.0,1229.8,2.00020695]
[1760126501264,0.14085647,1236.4,1232.8,0.58444689]
[1760126502480,0.14085647,1236.4,1232.6,0.58444689]
[1760126502962,0.14085647,1236.4,1232.7,0.58444689]
[1760126503162,0.14085647,1236.4,1232.8,0.58444689]
[1760126503364,0.14085647,1236.4,1232.7,0.58444689]
[1760126503562,0.14085647,1236.4,1232.8,0.58444689]
[1760126503969,2.72981337,1240.0,1231.1,2.00020695]
[1760126503970,0.79465625,1238.3,1232.9,0.58444689]
[1760126504166,0.79465625,1238.5,1233.0,0.58444689]
[1760126504466,0.14078695,1236.9,1233.2,0.58444689]
[1760126504762,0.79465625,1238.8,1233.2,0.58444689]
[1760126504966,0.14077499,1237.2,1233.1,0.58444689]
[1760126505269,0.79465625,1238.8,1233.0,0.58444689]
[1760126505469,0.14077129,1236.7,1233.1,0.58444689]
[1760126505664,0.79465625,1238.6,1233.0,0.58444689]
[1760126505967,0.79465625,1238.6,1232.9,0.58444689]
[1760126506163,0.79465625,1238.6,1232.6,0.78184654]
[1760126506164,0.79465625,1238.3,1232.8,0.58444689]
[1760126506366,0.79465625,1238.3,1232.7,0.58444689]
[1760126506567,0.79465625,1238.4,1232.6,0.58444689]
[1760126507167,0.14081971,1237.0,1232.6,0.58444689]
[1760126507663,0.14081971,1237.0,1232.2,0.58444689]
[1760126508868,0.14081971,1237.0,1233.0,0.58444689]
[1760126509268,0.14081971,1237.0,1233.2,0.58444689]
[1760126510267,0.14081971,1237.0,1233.1,0.58444689]
[1760126510665,0.14081971,1237.0,1233.0,0.58444689]
[1760126510869,0.14081971,1237.0,1233.1,0.58444689]
[1760126511370,0.14081971,1237.0,1233.0,0.58444689]
[1760126512571,0.14081971,1237.0,1232.9,0.58444689]
[1760126512768,0.79465625,1239.4,1232.9,0.58444689]
[1760126512968,0.14073429,1237.1,1232.9,0.58444689]
[1760126513372,0.79465625,1239.4,1232.9,0.58444689]
[1760126513572,0.14073429,1237.1,1232.9,0.58444689]
[1760126513768,0.79465625,1239.4,1232.9,0.58444689]
[1760126513968,0.79465625,1239.6,1232.8,0.58444689]
[1760126514169,0.14073115,1237.2,1232.9,0.58444689]
[1760126514373,0.79465625,1239.8,1232.9,0.58444689]
[1760126514574,0.14071949,1237.2,1232.9,0.58444689]
[1760126515078,0.79465625,1239.5,1232.9,0.58444689]
[1760126515374,0.1407377,1237.0,1232.6,0.58444689]
[1760126515668,0.14077357,1237.9,1232.3,0.58444689]
[1760126515876,0.14077357,1237.9,1232.2,0.58444689]
[1760126516073,0.14077357,1237.9,1232.3,0.58444689]
[1760126516276,0.14077357,1237.9,1232.1,0.58444689]
[1760126516672,0.14077357,1237.9,1232.0,0.58444689]
[1760126517270,0.14077357,1237.9,1231.8,0.58444689]
[1760126518874,0.14077357,1237.9,1231.7,0.58444689]
[1760126519874,0.14077357,1237.9,1231.8,0.58444689]
[1760126520071,0.14077357,1237.9,1232.0,0.58444689]
[1760126520375,0.14077357,1237.9,1231.9,0.58444689]
[1760126520580,0.14077357,1237.9,1231.8,0.58444689]
[1760126520983,0.14077357,1237.9,1231.6,0.58444689]
[1760126521382,0.14077357,1237.9,1231.7,0.58444689]
[1760126521578,0.14077357,1237.9,1231.4,0.58444689]
[1760126521783,0.14077357,1237.9,1230.8,1.17276981]
[1760126521784,0.14077357,1237.9,1231.2,0.58444689]
[1760126521980,0.79465625,1237.8,1231.1,0.58444689]
[1760126522481,0.79465625,1237.7,1230.9,0.58444689]
[1760126522790,0.79465625,1237.4,1230.9,0.58444689]
[1760126522986,0.79465625,1237.5,1230.8,0.58444689]
[1760126523184,0.79465625,1237.3,1230.6,0.58444689]
[1760126523381,0.79465625,1237.3,1230.7,0.58444689]
[1760126523687,0.79465625,1237.4,1230.6,0.58444689]
[1760126523981,0.79465625,1237.5,1230.6,0.58444689]
[1760126524183,0.79465625,1237.8,1231.0,0.58444689]
[1760126524382,0.14077357,1237.9,1231.2,0.58444689]
[1760126524790,0.93542982,1237.9,1231.2,0.58444689]
[1760126524989,0.93542982,1237.9,1231.4,0.58444689]
[1760126525183,0.14077357,1237.9,1231.4,0.58444689]
[1760126526188,0.14077357,1237.9,1231.5,0.58444689]
[1760126526387,0.14077357,1237.9,1231.4,0.58444689]
[1760126526587,0.93542982,1237.9,1231.1,0.58444689]
[1760126526786,0.93542982,1237.9,1230.7,0.78184654]
[1760126527189,0.79465625,1237.8,1230.7,0.78184654]
[1760126527391,0.79465625,1237.5,1230.5,0.78184654]
[1760126527890,0.79465625,1237.6,1230.5,0.78184654]
[1760126528387,1.35378983,1237.9,1230.6,0.78184654]
[1760126528388,0.79465625,1237.5,1230.6,0.78184654]
[1760126529291,0.79465625,1237.5,1230.7,0.78184654]
[1760126529492,0.79465625,1237.4,1230.6,0.78184654]
[1760126529892,0.79465625,1237.5,1230.7,0.78184654]
[1760126530189,0.79465625,1237.4,1230.7,0.78184654]
[1760126530698,0.79465625,1237.4,1231.3,0.78184654]
[1760126530893,0.14077357,1237.9,1231.6,0.78184654]
[1760126531094,0.14077357,1237.9,1232.1,0.78184654]
[1760126531294,0.14077357,1237.9,1232.5,0.78184654]
[1760126531500,0.14077357,1237.9,1232.6,0.78184654]
[1760126531701,0.14077357,1237.9,1232.7,0.78184654]
[1760126532198,0.14077357,1237.9,1232.9,0.78184654]
[1760126532394,0.14077357,1237.9,1232.7,0.78184654]
[1760126532596,0.14077357,1237.9,1233.1,0.78184654]
[1760126532800,0.14077357,1237.9,1233.4,0.78184654]
[1760126533096,0.14077357,1237.9,1233.3,0.78184654]
[1760126533499,0.14077357,1237.9,1233.2,0.78184654]
[1760126533693,0.14077357,1237.9,1233.1,0.78184654]
[1760126534399,0.14077357,1237.9,1233.4,0.78184654]
[1760126534796,0.14077357,1237.9,1233.5,0.78184654]
[1760126535604,0.14077357,1237.9,1233.0,0.78184654]
[1760126535900,0.14077357,1237.9,1233.3,0.78184654]
[1760126536095,0.14077357,1237.9,1233.0,1.17276981]
[1760126536096,0.14077357,1237.9,1233.2,0.78184654]
[1760126536500,0.14077357,1237.9,1233.0,0.78184654]
[1760126536896,0.14077357,1237.9,1233.1,0.78184654]
[1760126537300,0.14077357,1237.9,1233.7,0.78184654]
[1760126537796,0.14077357,1237.9,1233.1,0.78184654]
[1760126538000,0.14077357,1237.9,1233.2,0.78184654]
[1760126538200,0.14077357,1237.9,1233.3,0.78184654]
[1760126538398,0.14077357,1237.9,1233.2,0.78184654]
[1760126538598,0.14077357,1237.9,1234.0,0.78184654]
[1760126538804,0.14077357,1237.9,1234.1,0.78184654]
[1760126539201,0.14077357,1237.9,1234.2,0.78184654]
[1760126539599,0.14077357,1237.9,1234.0,1.17276981]
[1760126539600,0.14077357,1237.9,1234.0,0.78184654]
[1760126539804,0.14077357,1237.9,1233.9,0.78184654]
[1760126540501,0.14077357,1237.9,1233.7,0.78184654]
[1760126540804,0.79465625,1239.3,1232.2,2.00020695]
[1760126540805,0.79465625,1239.4,1234.0,0.78184654]
[1760126541001,0.79465625,1239.8,1234.7,0.78184654]
[1760126541206,0.1406393,1238.4,1234.8,0.78184654]
[1760126541502,0.79465625,1239.5,1234.6,0.78184654]
[1760126541701,0.14062566,1237.9,1234.5,0.78184654]
[1760126541900,0.79465625,1239.2,1234.3,0.78184654]
[1760126542103,0.14064044,1238.0,1234.4,0.78184654]
[1760126542305,0.14064044,1238.0,1234.5,0.78184654]
[1760126542505,0.79465625,1239.3,1234.6,0.78184654]
[1760126542706,0.14063078,1238.3,1234.6,0.78184654]
[1760126542903,0.14063078,1238.3,1234.5,0.78184654]
[1760126543303,0.14063078,1238.3,1234.4,0.78184654]
[1760126543505,0.14063078,1238.3,1234.3,0.78184654]
[1760126543705,0.14063078,1238.3,1234.4,0.78184654]
[1760126543906,0.14063078,1238.3,1234.2,0.78184654]
[1760126544109,0.14063078,1238.3,1234.3,0.78184654]
[1760126544608,0.14063078,1238.3,1234.1,0.78184654]
[1760126544906,0.14063078,1238.3,1234.2,0.78184654]
[1760126545311,0.14063078,1238.3,1234.4,0.78184654]
[1760126545509,0.14063078,1238.3,1234.3,0.78184654]
[1760126545805,0.14063078,1238.3,1234.1,0.78184654]
[1760126546008,0.14063078,1238.3,1233.9,0.78184654]
[1760126546412,0.14063078,1238.3,1234.1,0.78184654]
[1760126546608,0.14063078,1238.3,1234.2,0.78184654]
[1760126546913,0.14063078,1238.3,1234.3,0.78184654]
[1760126547109,0.14063078,1238.3,1234.6,0.78184654]
[1760126547413,0.14063078,1238.3,1234.5,0.78184654]
[1760126547613,0.14063078,1238.3,1234.6,0.78184654]
[1760126547913,0.14063078,1238.3,1234.7,0.78184654]
[1760126548113,0.14063078,1238.3,1234.8,0.78184654]
[1760126548612,0.14063078,1238.3,1234.9,0.78184654]
[1760126548814,0.79465625,1239.5,1235.0,0.78184654]
[1760126549014,0.79465625,1239.6,1235.1,0.78184654]
[1760126549214,0.14059669,1238.6,1235.1,0.78184654]
[1760126549514,0.14059669,1238.6,1235.0,0.78184654]
[1760126549713,0.14059669,1238.6,1234.6,0.78184654]
[1760126550316,0.14059669,1238.6,1234.5,0.78184654]
[1760126551111,0.14059669,1238.6,1234.8,0.78184654]
[1760126551411,0.14059669,1238.6,1235.2,0.78184654]
[1760126551715,0.79465625,1240.1,1235.6,0.78184654]
[1760126551913,0.14054048,1239.2,1235.6,0.78184654]
[1760126552211,0.14054048,1239.2,1235.7,0.78184654]
[1760126552414,0.14054048,1239.2,1235.6,0.78184654]
[1760126552913,0.79465625,1240.1,1235.6,0.78184654]
[1760126553111,0.79465625,1240.1,1235.7,0.78184654]
[1760126553317,1.21301626,1240.4,1235.6,0.78184654]
[1760126553318,0.14051494,1239.3,1235.6,0.78184654]
[1760126554315,0.14051494,1239.3,1235.5,0.78184654]
[1760126554721,0.14051494,1239.3,1235.7,0.78184654]
[1760126555120,0.79465625,1240.6,1235.7,0.78184654]
[1760126555424,0.14048147,1239.6,1235.9,0.78184654]
[1760126556019,0.14048147,1239.6,1235.7,0.78184654]
[1760126556219,0.14048147,1239.6,1235.4,1.17276981]
[1760126556220,0.14048147,1239.6,1235.6,0.78184654]
[1760126556419,0.14048147,1239.6,1235.5,0.78184654]
[1760126556616,0.14048147,1239.6,1235.3,0.78184654]
[1760126556821,0.14048147,1239.6,1235.9,0.57846391]
[1760126557320,0.14048147,1239.6,1235.7,0.57846391]
[1760126558218,0.14048147,1239.6,1235.6,0.57846391]
[1760126558418,0.14048147,1239.6,1235.5,0.57846391]
[1760126558619,0.14048147,1239.6,1235.4,0.57846391]
[1760126558823,0.14048147,1239.6,1235.5,0.57846391]
[1760126559018,0.14048147,1239.6,1235.7,0.57846391]
[1760126559723,0.14048147,1239.6,1235.8,0.57846391]
[1760126559922,0.14048147,1239.6,1235.9,0.57846391]
[1760126560620,0.14048147,1239.6,1236.0,0.57846391]
[1760126560820,0.14048147,1239.6,1235.6,0.78184654]
[1760126560821,0.14048147,1239.6,1236.3,0.57846391]
[1760126561522,0.14048147,1239.6,1236.4,0.57846391]
[1760126561721,0.14048147,1239.6,1236.3,0.57846391]
[1760126561921,0.79465625,1241.2,1236.4,0.57846391]
[1760126562123,0.79465625,1241.3,1236.4,0.57846391]
[1760126562325,0.1404415,1239.7,1236.3,0.57846391]
[1760126562523,0.79465625,1241.4,1236.3,0.57846391]
[1760126562823,0.79465625,1241.4,1234.5,2.80028974]
[1760126562824,0.14041175,1240.1,1236.5,0.57846391]
[1760126563125,0.14041175,1240.1,1236.7,0.57846391]
[1760126563326,0.14041175,1240.1,1236.5,0.57846391]
[1760126563622,0.14041175,1240.1,1236.3,0.57846391]
[1760126564120,0.14041175,1240.1,1236.1,0.57846391]
[1760126564323,0.14041175,1240.1,1236.3,0.57846391]
[1760126564527,0.14041175,1240.1,1236.1,0.57846391]
[1760126565529,0.14041175,1240.1,1235.9,0.57846391]
[1760126566029,0.14041175,1240.1,1233.1,2.80028974]
[1760126566030,0.14041175,1240.1,1235.8,0.57846391]
[1760126566726,0.14041175,1240.1,1235.7,0.57846391]
[1760126567430,0.14041175,1240.1,1235.6,0.57846391]
[1760126567733,0.14041175,1240.1,1235.8,0.57846391]
[1760126568330,0.14041175,1240.1,1235.7,0.57846391]
[1760126568531,0.14041175,1240.1,1235.6,0.57846391]
[1760126568832,0.14041175,1240.1,1236.1,0.57846391]
[1760126569031,0.14041175,1240.1,1236.2,0.57846391]
[1760126569326,0.14041175,1240.1,1236.1,0.57846391]
[1760126569531,0.14041175,1240.1,1236.3,0.57846391]
[1760126569731,0.14041175,1240.1,1236.2,0.57846391]
[1760126570632,0.14041175,1240.1,1235.8,0.57846391]
[1760126570931,0.14041175,1240.1,1236.1,0.57846391]
[1760126571132,0.14041175,1240.1,1235.8,0.57846391]
[1760126571934,0.14041175,1240.1,1235.9,0.57846391]
[1760126572136,0.79465625,1241.8,1236.2,0.57846391]
[1760126572332,0.14040184,1240.5,1236.5,0.57846391]
[1760126572534,0.14040184,1240.5,1236.8,0.57846391]
[1760126572831,0.14040184,1240.5,1233.6,2.80028974]
[1760126572832,0.79465625,1243.1,1237.2,0.57846391]
[1760126573035,0.14032145,1241.2,1237.4,0.57846391]
[1760126573238,0.79465625,1243.2,1237.4,0.57846391]
[1760126573435,0.79465625,1243.1,1236.9,0.57846391]
[1760126573636,0.14030419,1240.6,1237.1,0.57846391]
[1760126573936,0.79465625,1243.1,1237.1,0.57846391]
[1760126574132,0.14027903,1241.2,1237.3,0.57846391]
[1760126574431,0.14027903,1241.2,1234.2,2.80028974]
[1760126574432,0.79465625,1243.4,1237.4,0.57846391]
[1760126574637,0.14024878,1241.6,1237.5,0.57846391]
[1760126574836,0.14024878,1241.6,1237.9,0.57846391]
[1760126575037,0.79465625,1244.4,1237.8,0.57846391]
[1760126575236,0.14020527,1242.0,1237.8,0.57846391]
[1760126575436,0.14020527,1242.0,1237.6,0.57846391]
[1760126575637,0.79465625,1244.6,1237.7,0.57846391]
[1760126575833,0.14018155,1241.8,1237.8,0.57846391]
[1760126576031,0.79465625,1244.6,1238.2,0.57846391]
[1760126576234,0.79465625,1244.9,1238.0,0.57846391]
[1760126576431,0.14016405,1242.3,1237.9,0.57846391]
[1760126576833,0.79465625,1244.8,1237.5,0.57846391]
[1760126577132,0.14014994,1241.9,1237.5,0.57846391]
[1760126577431,0.79465625,1244.2,1237.1,0.57846391]
[1760126577631,0.14019793,1242.2,1237.6,0.57846391]
[1760126577835,0.14019793,1242.2,1237.9,0.57846391]
[1760126578032,0.79465625,1244.6,1237.0,0.57846391]
[1760126578232,0.14022024,1241.3,1237.0,0.57846391]
[1760126578435,0.79465625,1244.4,1237.5,0.57846391]
[1760126578935,0.79465625,1244.6,1237.9,0.57846391]
[1760126579432,0.14016828,1242.7,1237.9,0.57846391]
[1760126579735,0.79465625,1244.8,1237.6,0.57846391]
[1760126579933,0.14018522,1243.0,1237.6,0.57846391]
[1760126580130,0.14018522,1243.0,1236.9,1.17276981]
[1760126580131,0.14018522,1243.0,1236.9,0.57846391]
[1760126580336,0.14018522,1243.0,1236.6,0.57846391]
[1760126580529,0.14018522,1243.0,1237.4,0.57846391]
[1760126580735,0.14018522,1243.0,1237.1,0.57846391]
[1760126581241,0.14018522,1243.0,1236.9,0.57846391]
[1760126581835,0.14018522,1243.0,1237.7,0.57846391]
[1760126582131,0.14018522,1243.0,1237.9,0.57846391]
[1760126582335,0.14018522,1243.0,1238.6,0.57846391]
[1760126582536,2.72981337,1247.2,1238.4,0.78184654]
[1760126582537,0.79465625,1246.1,1239.0,0.57846391]
[1760126582736,0.14004278,1243.6,1239.2,0.57846391]
[1760126582937,0.14004278,1243.6,1239.3,0.57846391]
[1760126583134,0.79465625,1246.7,1239.7,0.57846391]
[1760126583338,0.1399386,1244.4,1239.9,0.57846391]
[1760126583532,0.1399386,1244.4,1239.3,1.17276981]
[1760126583533,0.79465625,1247.7,1240.3,0.57846391]
[1760126583834,0.13989669,1244.6,1240.1,0.57846391]
[1760126584137,0.79465625,1247.5,1240.0,0.57846391]
[1760126584338,0.13992284,1243.9,1239.5,0.57846391]
[1760126584537,0.13992284,1243.9,1239.0,0.57846391]
[1760126584838,0.79465625,1246.8,1239.0,0.57846391]
[1760126585038,0.13995998,1243.7,1239.0,0.57846391]
[1760126585336,1.21301626,1247.2,1236.8,2.80028974]
[1760126585337,0.79465625,1247.1,1239.4,0.57846391]
[1760126585538,0.13993522,1244.4,1239.7,0.57846391]
[1760126585738,0.79465625,1248.0,1239.8,0.57846391]
[1760126585937,0.79465625,1247.7,1239.4,0.57846391]
[1760126586138,0.79465625,1247.7,1238.5,1.17276981]
[1760126586139,0.13991975,1244.0,1238.8,0.57846391]
[1760126586334,0.13991975,1244.0,1237.1,2.00020695]
[1760126586335,0.79465625,1246.3,1238.6,0.57846391]